bitfinex-derivatives/quotes_BTCF0:USTF0_20250720
["timestamp","ask_amount","ask_price","bid_price","bid_amount"]
[1753024016037,0.6595786,118440.0,118430.0,0.8388208]
[1753024016542,1.0203786,118440.0,118430.0,0.75540251]
[1753024016936,1.0203786,118440.0,118430.0,0.69462051]
[1753024017532,1.0203786,118440.0,118430.0,0.75504251]
[1753024018038,1.0203786,118440.0,118430.0,0.15224251]
[1753024018441,1.0203786,118440.0,118430.0,0.76996348]
[1753024019343,1.0203786,118440.0,118430.0,0.76972348]
[1753024019647,1.0203786,118440.0,118430.0,0.69386051]
[1753024019942,1.0203786,118440.0,118430.0,0.09146051]
[1753024020143,1.0203786,118440.0,118430.0,0.69386051]
[1753024020342,1.0203786,118440.0,118430.0,0.75462578]
[1753024020535,1.23592894,118440.0,118430.0,0.75462578]
[1753024020734,1.23592894,118440.0,118430.0,0.69386051]
[1753024021744,1.23592894,118440.0,118430.0,0.75462032]
[1753024022243,1.0203786,118440.0,118430.0,0.75462032]
[1753024022449,1.23592894,118440.0,118430.0,0.75462032]
[1753024022647,1.0203786,118440.0,118430.0,0.15222032]
[1753024022842,1.0203786,118440.0,118430.0,0.92254092]
[1753024023146,1.18209411,118440.0,118430.0,0.91545583]
[1753024023346,1.0203786,118440.0,118430.0,1.08425643]
[1753024023547,1.0203786,118440.0,118430.0,1.17553643]
[1753024024245,1.0203786,118440.0,118430.0,1.00673583]
[1753024024842,1.0203786,118440.0,118430.0,0.97998583]
[1753024025042,1.18209411,118440.0,118430.0,0.81827032]
[1753024025245,1.0203786,118440.0,118430.0,0.81827032]
[1753024026345,1.0203786,118440.0,118430.0,1.03389456]
[1753024026648,1.0203786,118440.0,118430.0,0.81827032]
[1753024028149,1.0203786,118440.0,118430.0,0.75751051]
[1753024028650,0.6595786,118440.0,118430.0,0.75751051]
[1753024029446,0.6595786,118440.0,118430.0,0.83538266]
[1753024029741,1.0203786,118440.0,118430.0,0.77085266]
[1753024029946,1.0203786,118440.0,118430.0,0.83538266]
[1753024030243,1.0203786,118440.0,118430.0,1.0777569]
[1753024030648,1.0203786,118440.0,118430.0,0.86213266]
[1753024030845,1.0203786,118440.0,118430.0,1.0777569]
[1753024031242,1.0203786,118440.0,118430.0,1.2465575]
[1753024031550,0.4765394,118440.0,118430.0,1.62247453]
[1753024032147,0.3229994,118440.0,118430.0,1.62247453]
[1753024033349,0.3229994,118440.0,118430.0,1.40685029]
[1753024033549,0.3229994,118440.0,118430.0,1.62247453]
[1753024034953,0.3229994,118440.0,118430.0,1.71548356]
[1753024035158,0.112,118440.0,118430.0,1.71548356]
[1753024035453,0.112,118440.0,118430.0,2.15181117]
[1753024035657,0.2807863,118440.0,118430.0,2.15181117]
[1753024036458,0.08525,118440.0,118430.0,2.15181117]
[1753024036653,0.27229469,118450.0,118440.0,0.2916063]
[1753024036954,0.35229469,118450.0,118440.0,0.86803054]
[1753024037149,0.39917469,118450.0,118440.0,0.86803054]
[1753024037351,0.39917469,118450.0,118440.0,0.6524063]
[1753024037649,0.39917469,118450.0,118440.0,0.86803054]
[1753024038152,0.3810523,118450.0,118440.0,0.86803054]
[1753024038351,0.3810523,118450.0,118440.0,1.20803054]
[1753024038553,0.3810523,118450.0,118440.0,0.86803054]
[1753024039145,0.3810523,118450.0,118440.0,1.18803054]
[1753024039354,0.3810523,118450.0,118440.0,1.26387465]
[1753024039853,0.3810523,118450.0,118440.0,1.26387182]
[1753024040653,0.3820523,118450.0,118440.0,1.26687182]
[1753024041249,0.4933923,118450.0,118440.0,1.26687182]
[1753024041554,0.4923923,118450.0,118440.0,1.26687182]
[1753024041753,0.4933923,118450.0,118440.0,1.26687182]
[1753024042155,0.4933923,118450.0,118440.0,1.19103054]
[1753024042354,0.4933923,118450.0,118440.0,0.94683181]
[1753024042553,0.4933923,118450.0,118440.0,0.96683181]
[1753024044652,0.2507721,118450.0,118440.0,1.51245605]
[1753024044849,0.4061021,118450.0,118440.0,0.99735815]
[1753024045251,0.4061021,118450.0,118440.0,0.89103054]
[1753024045756,0.23733,118450.0,118440.0,0.89103054]
[1753024045956,0.4061021,118450.0,118440.0,0.89103054]
[1753024046154,0.4061021,118450.0,118440.0,0.99735815]
[1753024046456,0.23733,118450.0,118440.0,0.99735815]
[1753024047252,0.23733,118450.0,118440.0,0.89103054]
[1753024048559,0.23733,118450.0,118440.0,0.6754063]
[1753024048759,0.23733,118450.0,118440.0,0.89103054]
[1753024049156,0.23733,118450.0,118440.0,0.99870548]
[1753024049458,0.4061021,118450.0,118440.0,0.99870548]
[1753024050159,0.4061021,118450.0,118440.0,1.10503309]
[1753024051064,0.4061021,118450.0,118440.0,0.99870548]
[1753024051363,0.4061021,118450.0,118440.0,0.63790548]
[1753024051564,0.4061021,118450.0,118440.0,1.43520763]
[1753024054362,0.23733,118450.0,118440.0,1.43520763]
[1753024055766,0.23733,118450.0,118440.0,1.57530763]
[1753024055967,0.23733,118450.0,118440.0,2.17634763]
[1753024056164,0.23733,118450.0,118440.0,2.08064548]
[1753024056364,0.12888,118450.0,118440.0,2.08064548]
[1753024056564,0.12888,118450.0,118440.0,2.56229507]
[1753024056863,0.12888,118450.0,118440.0,2.40064548]
[1753024060270,0.12888,118450.0,118440.0,2.26054548]
[1753024061372,0.12888,118450.0,118440.0,2.36687309]
[1753024062262,0.12888,118450.0,118440.0,1.6172463]
[1753024062464,0.12888,118450.0,118440.0,2.25054548]
[1753024062661,0.12888,118450.0,118440.0,2.04687309]
[1753024063070,0.12888,118450.0,118440.0,2.36687309]
[1753024063367,0.32111,118470.0,118460.0,0.1687578]
[1753024063572,0.5378936,118470.0,118460.0,1.53189031]
[1753024063772,0.36915,118470.0,118460.0,1.53189031]
[1753024063969,0.31111,118470.0,118460.0,1.53189031]
[1753024064173,0.31111,118470.0,118460.0,1.47121225]
[1753024065577,0.31311,118470.0,118460.0,1.54705983]
[1753024065869,0.31411,118470.0,118460.0,1.55005983]
[1753024066567,0.31311,118470.0,118460.0,1.55005983]
[1753024067272,0.31211,118470.0,118460.0,1.54705983]
[1753024067575,0.31311,118470.0,118460.0,1.55205983]
[1753024069375,0.4818536,118470.0,118460.0,1.47621225]
[1753024069774,0.4818536,118470.0,118460.0,1.58253986]
[1753024070679,0.4818536,118470.0,118460.0,1.47621225]
[1753024071177,0.4818536,118470.0,118460.0,1.94333986]
[1753024071979,0.4818536,118470.0,118460.0,2.01921187]
[1753024072177,0.31311,118470.0,118460.0,2.01921187]
[1753024072379,0.31311,118470.0,118460.0,1.91288426]
[1753024073579,0.2695,118470.0,118460.0,1.83701225]
[1753024073779,0.2695,118470.0,118460.0,1.94333986]
[1753024074582,0.2695,118470.0,118460.0,1.91288784]
[1753024080378,0.2695,118470.0,118460.0,2.07453743]
[1753024080581,0.2695,118470.0,118460.0,2.38453743]
[1753024080889,0.24579,118470.0,118460.0,2.38453743]
[1753024081081,0.26893,118470.0,118460.0,1.91288784]
[1753024081483,0.26893,118470.0,118460.0,2.26288784]
[1753024082181,0.24579,118470.0,118460.0,2.39453743]
[1753024082393,0.24579,118470.0,118460.0,2.42498945]
[1753024082792,0.26893,118470.0,118460.0,1.96333986]
[1753024082982,0.26893,118470.0,118460.0,1.64004068]
[1753024083185,0.26893,118470.0,118460.0,1.96333986]
[1753024083985,0.26893,118470.0,118460.0,1.93286023]
[1753024084688,0.35921,118470.0,118460.0,1.25601225]
[1753024084892,0.3712,118470.0,118460.0,1.85665225]
[1753024085095,0.3712,118470.0,118460.0,1.93249419]
[1753024085288,0.3712,118470.0,118460.0,1.85665225]
[1753024085590,0.3712,118470.0,118460.0,1.93249162]
[1753024087588,0.5399436,118470.0,118460.0,1.58919244]
[1753024087790,0.70159319,118470.0,118460.0,0.71356266]
[1753024087986,0.70159319,118470.0,118460.0,0.45909027]
[1753024088187,0.70159319,118470.0,118460.0,1.22133986]
[1753024088487,0.5399436,118470.0,118460.0,1.22133986]
[1753024089292,0.5399436,118470.0,118460.0,1.58213986]
[1753024089492,0.5399436,118470.0,118460.0,1.22133986]
[1753024090885,0.5399436,118470.0,118460.0,1.58213986]
[1753024091495,0.5399436,118470.0,118460.0,1.22133986]
[1753024095899,0.5399436,118470.0,118460.0,1.29726458]
[1753024096101,0.5399436,118470.0,118460.0,1.19093697]
[1753024096303,0.5399436,118470.0,118460.0,1.55173697]
[1753024097892,0.5399436,118470.0,118460.0,1.47581225]
[1753024099400,0.5399436,118470.0,118460.0,1.58213986]
[1753024099604,0.5399436,118470.0,118460.0,1.25884068]
[1753024099799,0.5399436,118470.0,118460.0,1.58213986]
[1753024100900,0.5399436,118470.0,118460.0,1.25884068]
[1753024101101,0.5399436,118470.0,118460.0,1.58213986]
[1753024102502,0.5399436,118470.0,118460.0,1.25884068]
[1753024102702,0.5399436,118470.0,118460.0,1.58213986]
[1753024105902,0.5399436,118470.0,118460.0,1.72223986]
[1753024106108,0.5399436,118470.0,118460.0,1.58213986]
[1753024106304,0.5399436,118470.0,118460.0,1.47581225]
[1753024109010,0.5399436,118470.0,118460.0,1.55174469]
[1753024109208,0.3712,118470.0,118460.0,1.55174469]
[1753024110409,0.3712,118470.0,118460.0,1.22844551]
[1753024110611,0.3712,118470.0,118460.0,1.55174469]
[1753024115219,0.3712,118470.0,118460.0,1.47581225]
[1753024116915,0.3712,118470.0,118460.0,1.58215536]
[1753024120617,0.3712,118470.0,118460.0,1.25885618]
[1753024120818,0.3712,118470.0,118460.0,1.58215536]
[1753024123520,0.5399436,118470.0,118460.0,1.58215536]
[1753024125818,0.70159319,118470.0,118460.0,0.65114797]
[1753024126016,1.06239319,118470.0,118460.0,0.89050797]
[1753024126222,1.06239319,118470.0,118460.0,0.72885838]
[1753024126620,1.06239319,118470.0,118460.0,0.89050797]
[1753024127516,1.06239319,118470.0,118460.0,1.13522159]
[1753024127717,1.06239319,118470.0,118460.0,1.02887848]
[1753024127918,1.06239319,118470.0,118460.0,0.86722889]
[1753024128223,1.06239319,118470.0,118460.0,1.02887848]
[1753024129516,1.06239319,118470.0,118460.0,0.86722889]
[1753024129915,1.06239319,118470.0,118460.0,1.02887848]
[1753024130116,1.06239319,118470.0,118460.0,0.86722889]
[1753024130317,1.06239319,118470.0,118460.0,1.02887848]
[1753024131221,1.06239319,118470.0,118460.0,0.86722889]
[1753024131827,1.06239319,118470.0,118460.0,1.02887848]
[1753024133027,0.9007436,118470.0,118460.0,1.02887848]
[1753024133225,1.06239319,118470.0,118460.0,1.02887848]
[1753024134230,0.9007436,118470.0,118460.0,1.02887848]
[1753024134429,1.06239319,118470.0,118460.0,1.02887848]
[1753024135130,0.9007436,118470.0,118460.0,1.19052807]
[1753024135330,1.06239319,118470.0,118460.0,1.19052807]
[1753024135623,0.9007436,118470.0,118460.0,1.19052807]
[1753024136630,1.06239319,118470.0,118460.0,1.19052807]
[1753024140227,0.70159319,118470.0,118460.0,1.19052807]
[1753024141230,0.70159319,118470.0,118460.0,1.02887848]
[1753024141533,0.70159319,118470.0,118460.0,0.86722889]
[1753024141732,0.70159319,118470.0,118460.0,0.86012058]
[1753024142534,1.06239319,118470.0,118460.0,0.86012058]
[1753024142832,0.70159319,118470.0,118460.0,1.02887848]
[1753024143734,0.70159319,118470.0,118460.0,0.86012058]
[1753024144035,1.06239319,118470.0,118460.0,0.86012058]
[1753024145535,1.06239319,118470.0,118460.0,1.02887848]
[1753024145934,1.06239319,118470.0,118460.0,0.92081561]
[1753024146134,1.06239319,118470.0,118460.0,0.84485989]
[1753024147333,1.06239319,118470.0,118460.0,1.01361779]
[1753024147736,1.06239319,118470.0,118460.0,0.84485989]
[1753024147930,1.06239319,118470.0,118460.0,1.01361779]
[1753024148633,1.06239319,118470.0,118460.0,0.84485989]
[1753024149235,1.06239319,118470.0,118460.0,0.78416486]
[1753024149832,1.06239319,118470.0,118460.0,0.95292276]
[1753024152536,1.06239319,118470.0,118460.0,1.02887848]
[1753024152727,1.06239319,118470.0,118460.0,0.86012058]
[1753024152933,0.9007436,118470.0,118460.0,0.86012058]
[1753024153135,1.06239319,118470.0,118460.0,1.02887848]
[1753024153439,1.06239319,118470.0,118460.0,0.86722889]
[1753024153736,1.06239319,118470.0,118460.0,1.02887848]
[1753024154741,0.9007436,118470.0,118460.0,1.02887848]
[1753024155040,1.06239319,118470.0,118460.0,1.02887848]
[1753024155834,1.06239319,118470.0,118460.0,1.01152321]
[1753024156042,0.9007436,118470.0,118460.0,1.01152321]
[1753024156339,1.06239319,118470.0,118460.0,1.01152321]
[1753024158540,1.06239319,118470.0,118460.0,1.07230783]
[1753024158736,1.06239319,118470.0,118460.0,0.99635211]
[1753024160639,0.9007436,118470.0,118460.0,0.99635211]
[1753024160841,1.06239319,118470.0,118460.0,0.99635211]
[1753024162042,0.70159319,118470.0,118460.0,0.99635211]
[1753024162242,0.70159319,118470.0,118460.0,0.93556749]
[1753024162841,0.70159319,118470.0,118460.0,1.09721708]
[1753024163841,0.70159319,118470.0,118460.0,0.93556749]
[1753024164238,0.70159319,118470.0,118460.0,0.99635095]
[1753024164543,0.70159319,118470.0,118460.0,0.93556749]
[1753024165342,0.70159319,118470.0,118460.0,1.01152321]
[1753024168946,0.5399436,118470.0,118460.0,1.1731728]
[1753024169146,0.70159319,118470.0,118460.0,1.1731728]
[1753024169344,0.5399436,118470.0,118460.0,1.01152321]
[1753024169543,0.70159319,118470.0,118460.0,1.01152321]
[1753024169944,0.70159319,118470.0,118460.0,1.1731728]
[1753024170546,0.70159319,118470.0,118460.0,1.01152321]
[1753024171252,0.70159319,118470.0,118460.0,0.9035492]
[1753024171444,0.70159319,118470.0,118460.0,0.99635138]
[1753024172750,0.70159319,118470.0,118460.0,0.83470179]
[1753024172951,0.5399436,118470.0,118460.0,0.99635138]
[1753024173149,0.70159319,118470.0,118460.0,0.99635138]
[1753024173853,0.5399436,118470.0,118460.0,0.99635138]
[1753024174046,0.70159319,118470.0,118460.0,0.99635138]
[1753024174354,0.5399436,118470.0,118460.0,0.99635138]
[1753024174649,0.70159319,118470.0,118460.0,1.01152321]
[1753024178150,1.06239319,118470.0,118460.0,0.68111572]
[1753024178354,1.06239319,118470.0,118460.0,0.84987362]
[1753024178654,1.06239319,118470.0,118460.0,1.01152321]
[1753024179153,0.9007436,118470.0,118460.0,1.01152321]
[1753024179454,0.5399436,118470.0,118460.0,0.84276531]
[1753024179656,0.70159319,118470.0,118460.0,1.01152321]
[1753024180355,0.70159319,118470.0,118460.0,0.84276531]
[1753024181055,1.06239319,118470.0,118460.0,0.84276531]
[1753024181762,1.06239319,118470.0,118460.0,0.68111572]
[1753024182258,1.06239319,118470.0,118460.0,0.08095572]
[1753024182459,1.06239319,118470.0,118460.0,0.67975572]
[1753024183053,0.9007436,118470.0,118460.0,0.67975572]
[1753024183261,1.06239319,118470.0,118460.0,0.67975572]
[1753024184560,0.9007436,118470.0,118460.0,0.67975572]
[1753024184762,1.06239319,118470.0,118460.0,0.67975572]
[1753024186262,1.06239319,118470.0,118460.0,0.08095572]
[1753024186764,1.66103319,118470.0,118460.0,0.08095572]
[1753024188166,1.66103319,118470.0,118460.0,0.005]
[1753024190168,1.82268278,118470.0,118460.0,0.005]
[1753024190362,1.82268278,118470.0,118460.0,0.1417275]
[1753024190563,1.82268278,118470.0,118460.0,0.06577178]
[1753024190765,1.66103319,118470.0,118460.0,0.06577178]
[1753024191270,1.82268278,118470.0,118460.0,0.06577178]
[1753024192558,1.4993836,118470.0,118460.0,0.06577178]
[1753024192763,1.66103319,118470.0,118460.0,0.06577178]
[1753024194570,1.8351169,118470.0,118460.0,0.06577178]
[1753024196070,2.18348278,118470.0,118460.0,0.005]
[1753024198470,1.42319319,118470.0,118460.0,0.005]
[1753024198671,2.02147319,118470.0,118460.0,0.005]
[1753024199772,2.02147319,118470.0,118460.0,0.01747579]
[1753024199972,2.02147319,118470.0,118460.0,0.005]
[1753024201270,2.02147319,118470.0,118460.0,0.01745921]
[1753024201471,2.02147319,118470.0,118460.0,0.005]
[1753024201670,1.42319319,118470.0,118460.0,0.005]
[1753024201875,2.02139319,118470.0,118460.0,0.005]
[1753024203277,2.02131319,118470.0,118460.0,0.005]
[1753024204270,2.18296278,118470.0,118460.0,0.005]
[1753024208774,2.02131319,118470.0,118460.0,0.005]
[1753024210082,0.9007436,118470.0,118460.0,0.005]
[1753024210375,1.66031319,118470.0,118460.0,0.16664959]
[1753024211583,1.29951319,118470.0,118460.0,0.16664959]
[1753024211783,1.66031319,118470.0,118460.0,0.005]
[1753024212284,1.66031319,118470.0,118460.0,0.16664959]
[1753024212686,1.66031319,118470.0,118460.0,0.005]
[1753024212985,1.66031319,118470.0,118460.0,0.16664959]
[1753024214185,1.66031319,118470.0,118460.0,0.22742137]
[1753024215586,1.66031319,118470.0,118460.0,0.06577178]
[1753024215796,1.66031319,118470.0,118460.0,0.22742137]
[1753024215996,1.66031319,118470.0,118460.0,0.06577178]
[1753024216998,1.29951319,118470.0,118460.0,0.06577178]
[1753024217195,1.66031319,118470.0,118460.0,0.06577178]
[1753024218197,1.06239319,118470.0,118460.0,0.06577178]
[1753024218696,1.65995319,118470.0,118460.0,0.06577178]
[1753024220694,1.06239319,118470.0,118460.0,0.06577178]
[1753024220895,1.65995319,118470.0,118460.0,0.06577178]
[1753024221098,1.4983036,118470.0,118460.0,0.06577178]
[1753024221300,1.65995319,118470.0,118460.0,0.06577178]
[1753024222000,1.65995319,118470.0,118460.0,0.22742137]
[1753024222699,1.65995319,118470.0,118460.0,0.06577178]
[1753024228198,1.4983036,118470.0,118460.0,0.06577178]
[1753024228404,1.65995319,118470.0,118460.0,0.06577178]
[1753024229904,1.82160278,118470.0,118460.0,0.06577178]
[1753024230203,1.4983036,118470.0,118460.0,0.06577178]
[1753024230404,1.65995319,118470.0,118460.0,0.06577178]
[1753024230898,1.82160278,118470.0,118460.0,0.06577178]
[1753024232205,1.82160278,118470.0,118460.0,8e-08]
[1753024232607,0.2606279,118460.0,118450.0,0.07595572]
[1753024232905,1.20035708,118460.0,118450.0,0.07395572]
[1753024233302,0.2606421,118450.0,118440.0,0.16164959]
[1753024233502,1.05872169,118450.0,118440.0,0.16164959]
[1753024234006,0.3836564,118440.0,118430.0,1.06422311]
[1753024234210,0.5162864,118440.0,118430.0,1.2258727]
[1753024235005,0.5162864,118440.0,118430.0,0.8650727]
[1753024236207,0.5182864,118440.0,118430.0,0.8650727]
[1753024236507,0.5182864,118440.0,118430.0,0.87972886]
[1753024236900,0.5182864,118440.0,118430.0,1.24052886]
[1753024237099,0.5182864,118440.0,118430.0,0.87972886]
[1753024237306,0.5182864,118440.0,118430.0,0.87772886]
[1753024238103,0.5182864,118440.0,118430.0,1.23852886]
[1753024238300,0.5182864,118440.0,118430.0,0.87772886]
[1753024239103,0.5182864,118440.0,118430.0,0.77138575]
[1753024241309,0.5182864,118440.0,118430.0,1.29383534]
[1753024242108,0.5182864,118440.0,118430.0,0.93303534]
[1753024242313,0.5182864,118440.0,118430.0,1.29383534]
[1753024243414,0.4037864,118440.0,118430.0,1.63150794]
[1753024243616,0.2807864,118440.0,118430.0,1.94224886]
[1753024244213,0.2807864,118440.0,118430.0,1.69224886]
[1753024245117,0.3545164,118440.0,118430.0,1.69224886]
[1753024245515,0.3545164,118440.0,118430.0,1.83234886]
[1753024245716,0.4037864,118440.0,118430.0,1.83234886]
[1753024245914,0.2807864,118440.0,118430.0,1.77160794]
[1753024246314,0.3545164,118440.0,118430.0,1.77160794]
[1753024246616,0.4037864,118440.0,118430.0,1.60273594]
[1753024246816,0.4037864,118440.0,118430.0,1.84753435]
[1753024248416,0.4037864,118440.0,118430.0,1.77160794]
[1753024248613,0.4037864,118440.0,118430.0,1.87792256]
[1753024249417,0.4037864,118440.0,118430.0,1.77160794]
[1753024249812,0.4037864,118440.0,118430.0,1.77171229]
[1753024250012,0.2807864,118440.0,118430.0,2.09171229]
[1753024250208,0.112,118440.0,118430.0,2.20764465]
[1753024250414,0.2807864,118440.0,118430.0,1.84764465]
[1753024250617,0.112,118440.0,118430.0,2.15764465]
[1753024251118,0.112,118440.0,118430.0,1.84764465]
[1753024251316,0.112,118440.0,118430.0,1.77171229]
[1753024251519,0.112,118440.0,118430.0,2.12171229]
[1753024251815,0.5039577,118460.0,118430.0,2.48269025]
[1753024252011,0.5039577,118460.0,118450.0,0.92880325]
[1753024252012,0.4765877,118460.0,118450.0,0.92880325]
[1753024252211,0.4343976,118460.0,118450.0,1.52528325]
[1753024252408,0.26563,118460.0,118450.0,1.88608325]
[1753024252615,0.243,118460.0,118450.0,2.22608325]
[1753024252920,0.243,118460.0,118450.0,2.15015128]
[1753024253120,0.243,118460.0,118450.0,1.91645604]
[1753024254618,0.246,118460.0,118450.0,1.91645604]
[1753024255316,0.19673,118460.0,118450.0,1.91845604]
[1753024255515,0.121,118460.0,118450.0,2.39729604]
[1753024255714,0.2897579,118460.0,118450.0,2.39729604]
[1753024255911,0.2907579,118460.0,118450.0,2.39729604]
[1753024256516,0.3666879,118460.0,118450.0,2.39729604]
[1753024256712,0.122,118460.0,118450.0,2.39729604]
[1753024257921,0.1687553,118470.0,118460.0,0.1687579]
[1753024258223,0.2787553,118470.0,118460.0,0.85285708]
[1753024258416,0.2787553,118470.0,118460.0,1.2591348]
[1753024258614,0.2787553,118470.0,118460.0,1.09748521]
[1753024258816,0.2787553,118470.0,118460.0,1.42748521]
[1753024259013,0.2817553,118470.0,118460.0,1.42748521]
[1753024259215,0.113,118470.0,118460.0,1.5891348]
[1753024260224,0.2817437,118470.0,118460.0,1.5891348]
[1753024260620,0.2817437,118470.0,118460.0,2.1852948]
[1753024260621,0.113,118470.0,118460.0,2.1852948]
[1753024262527,0.113,118470.0,118460.0,2.10949067]
[1753024262725,0.113,118470.0,118460.0,2.18520309]
[1753024263122,0.113,118470.0,118460.0,1.91565214]
[1753024265629,0.113,118470.0,118460.0,2.05575214]
[1753024267824,0.113,118470.0,118460.0,2.08634448]
[1753024269525,0.18893,118470.0,118460.0,2.08634448]
[1753024270033,0.23444,118470.0,118460.0,1.75634448]
[1753024270629,0.23444,118470.0,118460.0,1.16018448]
[1753024270831,0.23444,118470.0,118460.0,1.54054666]
[1753024271028,0.25748,118470.0,118460.0,1.75586448]
[1753024271531,0.25748,118470.0,118460.0,1.16018448]
[1753024271727,0.25748,118470.0,118460.0,1.75586448]
[1753024272626,0.25748,118470.0,118460.0,1.64955972]
[1753024272826,0.25748,118470.0,118460.0,1.72519839]
[1753024275732,0.25748,118470.0,118460.0,1.55637439]
[1753024277335,0.23444,118470.0,118460.0,1.90637439]
[1753024279739,0.23444,118470.0,118460.0,1.83073572]
[1753024282338,0.12047261,118470.0,118460.0,1.83073572]
[1753024282540,0.24047261,118470.0,118460.0,1.83073572]
[1753024283139,0.24047261,118470.0,118460.0,2.1000194]
[1753024289640,0.26413261,118470.0,118460.0,2.1000194]
[1753024290444,0.26413261,118470.0,118460.0,1.6153379]
[1753024290743,0.26413261,118470.0,118460.0,2.1000194]
[1753024291948,0.26413261,118470.0,118460.0,2.20636608]
[1753024299457,0.26413261,118470.0,118460.0,1.6153379]
[1753024299659,0.26413261,118470.0,118460.0,2.1000194]
[1753024300354,0.26413261,118470.0,118460.0,2.20637971]
[1753024300756,0.26413261,118470.0,118460.0,2.1000194]
[1753024301160,0.26413261,118470.0,118460.0,2.20637848]
[1753024301562,0.26413261,118470.0,118460.0,2.1000194]
[1753024301864,0.15016525,118470.0,118460.0,2.2009094]
[1753024302563,0.15016525,118470.0,118460.0,2.35278743]
[1753024302856,0.15016525,118470.0,118460.0,2.44914735]
[1753024303363,0.15016525,118470.0,118460.0,2.29726932]
[1753024303561,0.15016525,118470.0,118460.0,1.81258782]
[1753024303861,0.22705525,118470.0,118460.0,2.29726932]
[1753024304763,0.32172525,118470.0,118460.0,1.95726932]
[1753024306662,0.32172525,118470.0,118460.0,2.31726932]
[1753024309960,0.32172525,118470.0,118460.0,1.95646932]
[1753024310165,0.32172525,118470.0,118460.0,2.67806932]
[1753024312766,0.20775898,118470.0,118460.0,2.5717094]
[1753024314763,0.25297898,118470.0,118460.0,2.5717094]
[1753024317262,0.25297898,118470.0,118460.0,2.72358743]
[1753024317966,0.25297898,118470.0,118460.0,2.5717094]
[1753024318770,0.25297898,118470.0,118460.0,2.72358743]
[1753024319573,0.25297898,118470.0,118460.0,2.23890593]
[1753024319768,0.25297898,118470.0,118460.0,2.72358743]
[1753024322172,0.17035898,118470.0,118460.0,2.2117094]
[1753024322563,0.17035898,118470.0,118460.0,2.5617094]
[1753024323871,0.15830898,118470.0,118460.0,2.5617094]
[1753024328571,0.15830898,118470.0,118460.0,2.0770279]
[1753024328777,0.15434345,118470.0,118460.0,2.5850294]
[1753024330179,0.19388,118490.0,118480.0,0.2689095]
[1753024330375,0.21388,118490.0,118480.0,1.76919169]
[1753024330774,0.36919,118490.0,118480.0,1.79958016]
[1753024331380,0.36919,118490.0,118480.0,1.94329111]
[1753024331579,0.37119,118490.0,118480.0,1.6932205]
[1753024332978,0.37119,118490.0,118480.0,1.76917111]
[1753024334574,0.37219,118490.0,118480.0,1.77117111]
[1753024336583,0.37219,118490.0,118480.0,1.83755295]
[1753024336978,0.22697,118490.0,118480.0,1.99911345]
[1753024337178,0.17199,118490.0,118480.0,2.7403225]
[1753024337583,0.123,118490.0,118480.0,2.7403225]
[1753024338585,0.122,118490.0,118480.0,2.7383225]
[1753024338885,0.122,118490.0,118480.0,2.7413225]
[1753024338886,0.124,118490.0,118480.0,2.7413225]
[1753024340286,0.122,118490.0,118480.0,2.8814225]
[1753024340488,0.122,118490.0,118480.0,2.77506284]
[1753024341179,0.00805332,118490.0,118480.0,2.77506284]
[1753024341676,0.04899,118500.0,118490.0,0.4158052]
[1753024341887,0.14899,118500.0,118490.0,1.55592243]
[1753024343090,0.1,118500.0,118490.0,1.55592243]
[1753024343283,0.101,118500.0,118490.0,1.88958293]
[1753024343483,0.04899,118510.0,118500.0,0.268881]
[1753024343679,0.08899,118510.0,118500.0,2.1942725]
[1753024344196,0.11393,118510.0,118500.0,2.270073]
[1753024344681,0.11593,118510.0,118500.0,2.28142847]
[1753024344887,0.19643,118510.0,118500.0,2.28142847]
[1753024345683,0.042,118510.0,118500.0,2.28142847]
[1753024345879,0.043,118510.0,118500.0,2.20862797]
[1753024346090,0.15272,118520.0,118510.0,0.4161667]
[1753024346091,0.04805,118520.0,118510.0,0.4161667]
[1753024346284,0.15805,118520.0,118510.0,1.4300877]
[1753024346480,0.11,118520.0,118510.0,1.66743188]
[1753024347184,0.113,118520.0,118510.0,1.66743188]
[1753024347385,0.113,118520.0,118510.0,1.80753188]
[1753024347593,0.114,118520.0,118510.0,1.7337482]
[1753024347784,0.114,118520.0,118510.0,1.80948919]
[1753024347984,0.04805,118530.0,118520.0,0.2563625]
[1753024348186,0.09805,118530.0,118520.0,2.23501143]
[1753024348884,0.09805,118530.0,118520.0,2.174434]
[1753024349087,0.09805,118530.0,118520.0,2.23499578]
[1753024349289,0.20272,118530.0,118520.0,1.91499578]
[1753024349584,0.23334,118530.0,118520.0,1.91499578]
[1753024349986,0.23434,118530.0,118520.0,2.25799578]
[1753024350380,0.23434,118530.0,118520.0,2.39809578]
[1753024350582,0.23434,118530.0,118520.0,2.39909578]
[1753024352186,0.09905,118530.0,118520.0,2.39909578]
[1753024352389,0.02654214,118540.0,118530.0,0.4161383]
[1753024352591,0.20313,118550.0,118540.0,0.4182941]
[1753024352790,0.30313,118550.0,118540.0,2.1863756]
[1753024353988,0.30313,118550.0,118540.0,1.8563756]
[1753024354291,0.30313,118550.0,118540.0,1.6948151]
[1753024354492,0.35118,118550.0,118540.0,1.6948151]
[1753024354795,0.35118,118550.0,118540.0,1.8563756]
[1753024355294,0.35118,118550.0,118540.0,1.58685639]
[1753024355891,0.12517,118550.0,118540.0,1.96785639]
[1753024356498,0.101,118550.0,118540.0,2.18301868]
[1753024356692,0.101,118550.0,118540.0,1.96785639]
[1753024357193,0.101,118550.0,118540.0,2.02841817]
[1753024357494,0.101,118550.0,118540.0,2.24358046]
[1753024358494,0.101,118550.0,118540.0,2.02841817]
[1753024359990,0.101,118550.0,118540.0,1.06258363]
[1753024360199,0.35218,118550.0,118540.0,1.65482363]
[1753024360390,0.35218,118550.0,118540.0,1.96482363]
[1753024360586,0.35218,118550.0,118540.0,1.65482363]
[1753024360991,0.35218,118550.0,118540.0,1.99482363]
[1753024361196,0.35218,118550.0,118540.0,1.65482363]
[1753024363798,0.35218,118550.0,118540.0,1.73034748]
[1753024364997,0.21756,118550.0,118540.0,1.73034748]
[1753024365200,0.21756,118550.0,118540.0,2.25044748]
[1753024365601,0.08148793,118550.0,118540.0,2.5260156]
[1753024365801,0.08148793,118550.0,118540.0,2.45049175]
[1753024367196,0.34301287,118570.0,118560.0,0.1686156]
[1753024367391,0.17896,118580.0,118570.0,0.5025465]
[1753024367596,0.29896,118580.0,118570.0,1.43850879]
[1753024368793,0.29896,118580.0,118570.0,1.44945952]
[1753024369003,0.29896,118580.0,118570.0,1.08945952]
[1753024369296,0.34701,118580.0,118570.0,1.08945952]
[1753024369504,0.37118,118580.0,118570.0,1.08945952]
[1753024369703,0.37518,118580.0,118570.0,1.09045952]
[1753024370098,0.30296,118580.0,118570.0,1.40745952]
[1753024370805,0.29896,118580.0,118570.0,1.40645952]
[1753024371005,0.29996,118580.0,118570.0,1.40945952]